Workbook

Sheet БИРЖА
A1: Кол-во КГ | C1: 2267.68
A2: Курс КГ | C2: =РТС2!A37 -> 31.4151 | D2: Лавущенко | H2: РТС | J2: Кол-во акций | K2: ПРИБЫЛЬ КГ | L2: Убыток КГ | M2: График на РТС
A3: № | B3: Код | C3: Эмитент | D3: Цена покупки * КГ | E3: Цена покупки * РУБ | F3: Цена продажи *КГ | G3: Цена продажи *РУБ | H3: Покупка РУБ | I3: Продажа РУБ
A4: 1 | B4: TRNFP | C4: ОАО АК Транснефть, ап | D4: =Лавущенко!D13 -> 850 | E4: =D4*C2 -> 26702.835 | F4: =Лавущенко!E13 -> 1100 | G4: =F4*C2 -> 34556.61 | H4: =РТС!V70 -> 31649.97 | I4: =РТС!W70 -> 31771.97 | J4: =C1/F4 -> 2.061527273 | K4: =(H4-G4)/C2*J4 -> -190.7400464 | L4: =(D4-F4)*J4 -> -515.3818182 | M4: График Транснефти | O4: Сайт Лавущенко
A5: 2 | B5: AKRN | C5: ОАО Акрон, ао | D5: =Лавущенко!D14 -> 30 | E5: =D5*C2 -> 942.453 | F5: =Лавущенко!E14 -> 40 | G5: =F5*C2 -> 1256.604 | J5: =C1/F5 -> 56.692 | K5: =(H5-G5)/C2*J5 -> -2267.68 | L5: =(D5-F5)*J5 -> -566.92
A6: 3 | B6: AFKS | C6: ОАО АФК Система, ао | D6: =Лавущенко!D15 -> 0.55 | E6: =D6*C2 -> 17.278305 | F6: =Лавущенко!E15 -> 0.8 | G6: =F6*C2 -> 25.13208 | J6: =C1/F6 -> 2834.6 | K6: =(H6-G6)/C2*J6 -> -2267.68 | L6: -708.65
A7: 4 | B7: AFLT | C7: ОАО Аэрофлот, ао | D7: =Лавущенко!D16 -> 1.3 | E7: =D7*C2 -> 40.83963 | F7: =Лавущенко!E16 -> 2 | G7: =F7*C2 -> 62.8302 | H7: =РТС!V62 -> 48.4 | I7: =РТС!W62 -> 55 | J7: =C1/F7 -> 1133.84 | K7: =(H7-G7)/C2*J7 -> -520.8176313 | L7: -793.688 | M7: График Аэрофлота | O7: Сайт РТС
A8: 5 | B8: VZRZ | C8: ОАО Банк Возрождение, ао | D8: =Лавущенко!D17 -> 20.3 | E8: =D8*C2 -> 637.72653 | F8: =Лавущенко!E17 -> 23 | G8: =F8*C2 -> 722.5473 | J8: =C1/F8 -> 98.59478261 | K8: =(H8-G8)/C2*J8 -> -2267.68 | L8: -266.205913
A9: 6 | B9: VTBRS | C9: ОАО Банк ВТБ, ао | D9: =Лавущенко!D18 -> 0.00214242 | E9: =D9*C2 -> 0.06730433854 | F9: =Лавущенко!E18 -> 0.00214433 | G9: =F9*C2 -> 0.06736434138 | H9: =РТС!V44 -> 0.06676 | I9: =РТС!W44 -> 0.06684 | J9: =C1/F9 -> 1057523.795 | K9: =(H9-G9)/C2*J9 -> -20.34389173 | L9: -2.019870449 | M9: График ВТБ | O9: Mail.ru
A10: 7 | B10: BANE | C10: ОАО Башнефть, ао | D10: =Лавущенко!D19 -> 48.25 | E10: =D10*C2 -> 1515.778575 | F10: =Лавущенко!E19 -> 49 | G10: =F10*C2 -> 1539.3399 | J10: =C1/F10 -> 46.27918367 | K10: =(H10-G10)/C2*J10 -> -2267.68 | L10: -34.70938776
A11: 8 | B11: SIBN | C11: ОАО Газпром нефть, ао | D11: =Лавущенко!D20 -> 3.1 | E11: =D11*C2 -> 97.38681 | F11: =Лавущенко!E20 -> 4.1 | G11: =F11*C2 -> 128.80191 | J11: =C1/F11 -> 553.0926829 | K11: =(H11-G11)/C2*J11 -> -2267.68 | L11: -553.0926829
A12: 9 | B12: CHMFS | C12: ОАО Северсталь, ао | D12: =Лавущенко!D21 -> 12.5309 | E12: =D12*C2 -> 393.6594766 | F12: =Лавущенко!E21 -> 12.5405 | G12: =C2*F12 -> 393.9610615 | H12: =РТС!V52 -> 391.25 | I12: =РТС!W52 -> 392.15 | J12: =C1/F12 -> 180.8285156 | K12: =(H12-G12)/C2*J12 -> -15.60514644 | L12: -1.73595375 | M12: График Северстали | O12: Yandex.ru
A13: 10 | B13: GAZPS | C13: ОАО Газпром, ао | D13: =Лавущенко!D22 -> 5.0953 | E13: =D13*C2 -> 160.069359 | F13: =Лавущенко!E22 -> 5.09657 | G13: =F13*C2 -> 160.1092562 | H13: =РТС!V40 -> 161.05 | I13: =РТС!W40 -> 161.19 | J13: =C1/F13 -> 444.9423828 | K13: =(H13-G13)/C2*J13 -> 13.32406342 | L13: -0.5650768262 | M13: График Газпром
A14: 11 | B14: GMKNS | C14: ОАО ГМК Норильский никель, ао | D14: =Лавущенко!D23 -> 199.58 | E14: =D14*C2 -> 6269.825658 | F14: =Лавущенко!E23 -> 199.643 | G14: =F14*C2 -> 6271.804809 | H14: =РТС!V43 -> 6269.1 | I14: =РТС!W43 -> 6280.23 | J14: =C1/F14 -> 11.35867524 | K14: =(H14-G14)/C2*J14 -> -0.9779707979 | L14: -0.7155965398 | M14: График Норникеля
A15: 12 | B15: LSRG | C15: ОАО Группа ЛСР, ао | D15: =Лавущенко!D24 -> 15 | E15: =D15*C2 -> 471.2265 | F15: =Лавущенко!E24 -> 15.75 | G15: =F15*C2 -> 494.787825 | J15: =C1/F15 -> 143.9796825 | K15: =(H15-G15)/C2*J15 -> -2267.68 | L15: -107.9847619
A16: 13 | B16: IRAO | C16: ОАО ИНТЕР РАО ЕЭС, ао | D16: =Лавущенко!D25 -> 0.00106 | E16: =D16*C2 -> 0.033300006 | F16: =Лавущенко!E25 -> 0.00118 | G16: =F16*C2 -> 0.037069818 | J16: =C1/F16 -> 1921762.712 | K16: =(H16-G16)/C2*J16 -> -2267.68 | L16: -230.6115254
A17: 14 | B17: MVID | C17: ОАО Компания М.видео, ао | D17: =Лавущенко!D26 -> 5 | E17: =D17*C2 -> 157.0755 | F17: =Лавущенко!E26 -> 7 | G17: =F17*C2 -> 219.9057 | J17: =C1/F17 -> 323.9542857 | K17: =(H17-G17)/C2*J17 -> -2267.68 | L17: -647.9085714
A18: 15 | B18: VSMO | C18: ОАО Корпорация ВСМПО-АВИСМА, ао | D18: =Лавущенко!D27 -> 130 | E18: =D18*C2 -> 4083.963 | F18: =Лавущенко!E27 -> 200 | G18: =F18*C2 -> 6283.02 | J18: =C1/F18 -> 11.3384 | K18: =(H18-G18)/C2*J18 -> -2267.68 | L18: -793.688
A19: 16 | B19: LKOHS | C19: ОАО ЛУКОЙЛ, ао | D19: =Лавущенко!D28 -> 53.7605 | E19: =D19*C2 -> 1688.891484 | F19: =Лавущенко!E28 -> 53.77 | G19: =F19*C2 -> 1689.189927 | H19: =РТС!V41 -> 1683.43 | I19: =РТС!W41 -> 1685.56 | J19: =C1/F19 -> 42.17370281 | K19: =(H19-G19)/C2*J19 -> -7.732506008 | L19: -0.4006501767 | M19: График Лукойл
A20: 17 | B20: MGNT | C20: ОАО Магнит, ао | D20: =Лавущенко!D29 -> 70 | E20: =D20*C2 -> 2199.057 | F20: =Лавущенко!E29 -> 98 | G20: =F20*C2 -> 3078.6798 | J20: =C1/F20 -> 23.13959184 | K20: =(H20-G20)/C2*J20 -> -2267.68 | L20: -647.9085714
A21: 18 | B21: MTLR | C21: ОАО Мечел, ао | D21: =Лавущенко!D30 -> 5.3 | E21: =D21*C2 -> 166.50003 | F21: =Лавущенко!E30 -> 11.5 | G21: =F21*C2 -> 361.27365 | J21: =C1/F21 -> 197.1895652 | K21: =(H21-G21)/C2*J21 -> -2267.68 | L21: -1222.575304
A22: 19 | B22: MAGNS | C22: ОАО ММК, ао | D22: =Лавущенко!D31 -> 0.410475 | E22: =D22*C2 -> 12.89511317 | F22: =Лавущенко!E31 -> 0.413657 | G22: =F22*C2 -> 12.99507602 | J22: =C1/F22 -> 5482.029798 | K22: =(H22-G22)/C2*J22 -> -2267.68 | L22: -17.44381882
A23: 20 | B23: MSNG | C23: ОАО Мосэнерго, ао | D23: =Лавущенко!D32 -> 0.055 | E23: =D23*C2 -> 1.7278305 | F23: =Лавущенко!E32 -> 0.0625 | G23: =F23*C2 -> 1.96344375 | H23: =РТС!V64 -> 1.76 | I23: =РТС!W64 -> 2.04 | J23: =C1/F23 -> 36282.88 | K23: =(H23-G23)/C2*J23 -> -234.9674255 | L23: -272.1216 | M23: График Мосэнерго
A24: 21 | B24: MTSS | C24: ОАО МТС, ао | D24: 0 | E24: =D24*C2 -> 0 | F24: =Лавущенко!E33 -> 6.5 | G24: =F24*C2 -> 204.19815 | H24: =РТС!V54 -> 178 | I24: 200 | J24: =C1/F24 -> 348.8738462 | K24: =(H24-G24)/C2*J24 -> -290.9380951 | L24: =(D24-F24)*J24 -> -2267.68 | M24: График МТС
A25: 22 | B25: ROSNS | C25: ОАО НК Роснефть, ао | D25: =Лавущенко!D34 -> 6.30732 | E25: =D25*C2 -> 198.1450885 | F25: =Лавущенко!E34 -> 6.31018 | G25: =F25*C2 -> 198.2349357 | H25: =РТС2!B6 -> 197.67 | I25: =РТС2!C6 -> 197.82 | J25: =C1/F25 -> 359.3685125 | K25: =(H25-G25)/C2*J25 -> -6.462500792 | L25: -1.027793946 | M25: График Роснефть
A26: 23 | B26: NLMKS | C26: ОАО НЛМК, ао | D26: =Лавущенко!D35 -> 2.31012 | E26: =D26*C2 -> 72.57265081 | F26: =Лавущенко!E35 -> 2.53604 | G26: =F26*C2 -> 79.6699502 | H26: =РТС!V65 -> 72.6 | I26: =РТС!W65 -> - | J26: =C1/F26 -> 894.1814798 | K26: =(H26-G26)/C2*J26 -> -201.2350282 | L26: -202.0134799 | M26: График НЛМК
A27: 24 | B27: NVTKS | C27: ОАО НОВАТЭК, ао | D27: =Лавущенко!D36 -> 11.9324 | E27: =D27*C2 -> 374.8575392 | F27: =Лавущенко!E36 -> 12.6643 | G27: =F27*C2 -> 397.8502509 | H27: =РТС!V57 -> 380 | I27: =РТС!W57 -> 398 | J27: =C1/F27 -> 179.0608245 | K27: =(H27-G27)/C2*J27 -> -101.7434498 | L27: -131.0546175 | M27: График Новатэк
A28: 25 | B28: NMTP | C28: ОАО Новороссийский морской торговый порт, ао | D28: =Лавущенко!D37 -> 0.08 | E28: =D28*C2 -> 2.513208 | F28: =Лавущенко!E37 -> 0.1 | G28: =F28*C2 -> 3.14151 | J28: =C1/F28 -> 22676.8 | K28: =(H28-G28)/C2*J28 -> -2267.68 | L28: -453.536
A29: 26 | B29: OGKA | C29: ОАО ОГК-1, ао | D29: =Лавущенко!D38 -> 0.017 | E29: =D29*C2 -> 0.5340567 | F29: =Лавущенко!E38 -> 0.022 | G29: =F29*C2 -> 0.6911322 | H29: =РТС!V56 -> 0.58 | I29: =РТС!W56 -> - | J29: =C1/F29 -> 103076.3636 | K29: =(H29-G29)/C2*J29 -> -364.6368485 | L29: -515.3818182 | M29: График ОГК-1
A30: 27 | B30: OGKB | C30: ОАО ОГК-2, ао | D30: =Лавущенко!D39 -> 0.026 | E30: =D30*C2 -> 0.8167926 | F30: =Лавущенко!E39 -> 0.031 | G30: =F30*C2 -> 0.9738681 | H30: =РТС!V67 -> 0.86 | I30: 1 | J30: =C1/F30 -> 73150.96774 | K30: =(H30-G30)/C2*J30 -> -265.1451598 | L30: -365.7548387 | M30: График ОГК-2
A31: 28 | B31: OGKC | C31: ОАО ОГК-3, ао | D31: =Лавущенко!D40 -> 0.02 | E31: =D31*C2 -> 0.628302 | F31: =Лавущенко!E40 -> 0.03 | G31: =F31*C2 -> 0.942453 | H31: =РТС2!B25 -> 0.85 | I31: =РТС2!C25 -> 1 | J31: =C1/F31 -> 75589.33333 | K31: =(H31-G31)/C2*J31 -> -222.4554636 | L31: -755.8933333 | M31: График ОГК-3
A32: 29 | B32: OGKD | C32: ОАО ОГК-4, ао | D32: =Лавущенко!D41 -> 0.062 | E32: =D32*C2 -> 1.9477362 | F32: =Лавущенко!E41 -> 0.072 | G32: =F32*C2 -> 2.2618872 | J32: =C1/F32 -> 31495.55556 | K32: =(H32-G32)/C2*J32 -> -2267.68 | L32: -314.9555556
A33: 30 | B33: PMTL | C33: ОАО Полиметалл, ао | D33: =Лавущенко!D42 -> 14.05 | E33: =D33*C2 -> 441.382155 | F33: =Лавущенко!E42 -> 16 | G33: =F33*C2 -> 502.6416 | H33: =РТС!V60 -> 447 | I33: =РТС!W60 -> 509 | J33: =C1/F33 -> 141.73 | K33: =(H33-G33)/C2*J33 -> -251.0284535 | L33: -276.3735 | M33: График Полиметалл
A34: 31 | B34: RASP | C34: ОАО Распадская, ао | D34: =Лавущенко!D43 -> 1.7 | E34: =D34*C2 -> 53.40567 | F34: =Лавущенко!E43 -> 2.79 | G34: =F34*C2 -> 87.648129 | H34: =РТС!V68 -> 75 | I34: =РТС!W68 -> 90.3 | J34: =C1/F34 -> 812.7885305 | K34: =(H34-G34)/C2*J34 -> -327.2392634 | L34: -885.9394982 | M34: График Распадская
A35: 32 | B35: HYDRS | C35: ОАО РусГидро, ао | D35: =Лавущенко!D44 -> 0.0354154 | E35: =D35*C2 -> 1.112578333 | F35: =Лавущенко!E44 -> 0.035479 | G35: =F35*C2 -> 1.114576333 | H35: =РТС!V53 -> 1.107 | I35: =РТС!W53 -> 1.115 | J35: =C1/F35 -> 63916.11939 | K35: =(H35-G35)/C2*J35 -> -15.41455536 | L35: -4.065065193 | M35: График РусГидро
A36: 33 | B36: SBERS | C36: ОАО Сбербанк России, ао | D36: =Лавущенко!D45 -> 2.35944 | E36: =D36*C2 -> 74.12204354 | F36: =Лавущенко!E45 -> 2.35975 | G36: =F36*C2 -> 74.13178222 | H36: =РТС2!B3 -> 74.21 | I36: =РТС2!C3 -> 74.28 | J36: =C1/F36 -> 960.983155 | K36: =(H36-G36)/C2*J36 -> 2.392669901 | L36: -0.297904778 | M36: График Сбербанк об.
A37: 34 | B37: SBERPS | C37: ОАО Сбербанк России, ап | D37: =Лавущенко!D46 -> 1.79368 | E37: =D37*C2 -> 56.34863657 | F37: =Лавущенко!E46 -> 1.79527 | G37: =F37*C2 -> 56.39858658 | H37: =РТС2!B10 -> 55.54 | I37: =РТС2!C10 -> 55.64 | J37: =C1/F37 -> 1263.141477 | K37: =(H37-G37)/C2*J37 -> -34.52213481 | L37: -2.008394949 | M37: График Сбербанк пр.
A38: 35 | B38: SVAV | C38: ОАО СОЛЛЕРС, ао | D38: =Лавущенко!D47 -> 11.25 | E38: =D38*C2 -> 353.419875 | F38: =Лавущенко!E47 -> 12 | G38: =F38*C2 -> 376.9812 | J38: =C1/F38 -> 188.9733333 | K38: =(H38-G38)/C2*J38 -> -2267.68 | L38: -141.73
A39: 36 | B39: SNGSS | C39: ОАО Сургутнефтегаз, ао | D39: =Лавущенко!D48 -> 0.824737 | E39: =D39*C2 -> 25.90919533 | F39: =Лавущенко!E48 -> 0.825055 | G39: =F39*C2 -> 25.91918533 | H39: =РТС!V45 -> 25.863 | I39: =РТС!W45 -> 25.927 | J39: =C1/F39 -> 2748.519796 | K39: =(H39-G39)/C2*J39 -> -4.915677273 | L39: -0.874029295 | M39: График Сургутнефтегаз
A40: 37 | B40: SNGSPS | C40: ОАО Сургутнефтегаз, ап | D40: =Лавущенко!D49 -> 0.452127 | E40: =D40*C2 -> 14.20361492 | F40: =Лавущенко!E49 -> 0.452636 | G40: =F40*C2 -> 14.2196052 | H40: =РТС!V49 -> 14.229 | I40: =РТС!W49 -> 14.255 | J40: =C1/F40 -> 5009.941763 | K40: =(H40-G40)/C2*J40 -> 1.498240745 | L40: -2.550060358 | M40: График Сургутнефтегаз пр.
A41: 38 | B41: TATNS | C41: ОАО Татнефть | D41: =Лавущенко!D50 -> 4.41086 | E41: =D41*C2 -> 138.567608 | F41: =Лавущенко!E50 -> 4.41722 | G41: =F41*C2 -> 138.767408 | H41: =РТС!V50 -> 136.03 | I41: =РТС!W50 -> 138.98 | J41: =C1/F41 -> 513.3726643 | K41: =(H41-G41)/C2*J41 -> -44.73359784 | L41: -3.265050145 | M41: График Татнефть
A42: 39 | B42: URKAS | C42: ОАО Уралкалий, ао | D42: =Лавущенко!D51 -> 7.73061 | E42: =D42*C2 -> 242.8578862 | F42: =Лавущенко!E51 -> 7.74302 | G42: =F42*C2 -> 243.2477476 | H42: =РТС!V48 -> 241.04 | I42: =РТС!W48 -> 241.88 | J42: =C1/F42 -> 292.8676408 | K42: =(H42-G42)/C2*J42 -> -20.5817531 | L42: -3.634487422 | M42: График Уралкалий
A43: 40 | B43: PHST | C43: ОАО Фармстандарт, ао | D43: =Лавущенко!D52 -> 65 | E43: =D43*C2 -> 2041.9815 | F43: =Лавущенко!E52 -> 68.25 | G43: =F43*C2 -> 2144.080575 | J43: =C1/F43 -> 33.22608059 | K43: =(H43-G43)/C2*J43 -> -2267.68 | L43: -107.9847619
A44: 41 | B44: FEESS | C44: ОАО ФСК ЕЭС, ао | D44: =Лавущенко!D53 -> 0.00819677 | E44: =D44*C2 -> 0.2575023492 | F44: =Лавущенко!E53 -> 0.00822859 | G44: =F44*C2 -> 0.2585019777 | H44: =РТС2!B15 -> 0.2301 | I44: =РТС2!C15 -> 0.2665 | J44: =C1/F44 -> 275585.4891 | K44: =(H44-G44)/C2*J44 -> -249.1532072 | L44: -8.769130264 | M44: График ФСК ЕЭС
A45: 42 | B45: MRKH | C45: ОАО Холдинг МРСК, ао | D45: =Лавущенко!D54 -> 0.0675 | E45: =D45*C2 -> 2.12051925 | F45: =Лавущенко!E54 -> 0.0725 | G45: =F45*C2 -> 2.27759475 | H45: =РТС!V63 -> 2.04 | I45: =РТС!W63 -> - | J45: =C1/F45 -> 31278.34483 | K45: =(H45-G45)/C2*J45 -> -236.5604604 | L45: -156.3917241 | M45: График МРСК
A46: 43 | B46: DIXY | C46: ОАО ДИКСИ Групп, ао | D46: =Лавущенко!D55 -> 7 | E46: =D46*C2 -> 219.9057 | F46: =Лавущенко!E55 -> 10 | G46: =F46*C2 -> 314.151 | J46: =C1/F46 -> 226.768 | K46: =(H46-G46)/C2*J46 -> -2267.68 | L46: -680.304
A47: 44 | B47: MSRS | C47: ОАО Московская объединенная электросетевая компания, ао | D47: =Лавущенко!D56 -> 0.04646 | E47: =D47*C2 -> 1.459545546 | F47: =Лавущенко!E56 -> 0.04808 | G47: =F47*C2 -> 1.510438008 | J47: =C1/F47 -> 47164.72546 | K47: =(H47-G47)/C2*J47 -> -2267.68 | L47: -76.40685524
A48: 45 | B48: MSTT | C48: ОАО МОСТОТРЕСТ, ао | D48: =Лавущенко!D57 -> 5.01 | E48: =D48*C2 -> 157.389651 | F48: =Лавущенко!E57 -> 5.06 | G48: =F48*C2 -> 158.960406 | J48: =C1/F48 -> 448.1581028 | K48: =(H48-G48)/C2*J48 -> -2267.68 | L48: -22.40790514
A49: 46 | B49: PIKK | C49: ОАО Группа Компаний ПИК, ао | D49: =Лавущенко!D58 -> 2.78 | E49: =D49*C2 -> 87.333978 | F49: =Лавущенко!E58 -> 2.919 | G49: =F49*C2 -> 91.7006769 | J49: =C1/F49 -> 776.8687907 | K49: =(H49-G49)/C2*J49 -> -2267.68 | L49: -107.9847619
A50: 47 | B50: RUAL | C50: ОАО Сбербанк России, Юнайтед Компани РУСАЛ Плс, РДР на акции, 1:10 | D50: =Лавущенко!D59 -> 9.13 | E50: =D50*C2 -> 286.819863 | F50: =Лавущенко!E59 -> 9.21 | G50: =F50*C2 -> 289.333071 | J50: =C1/F50 -> 246.2193268 | K50: =(H50-F50)/C2*J50 -> -72.1843954 | L50: -19.69754615
A51: 48 | B51: STBK | C51: ОАО Банк Санкт-Петербург, ао | D51: =Лавущенко!D60 -> 2.5 | E51: =D51*C2 -> 78.53775 | F51: =Лавущенко!E60 -> 3.5 | G51: =F51*C2 -> 109.95285 | J51: =C1/F51 -> 647.9085714 | K51: =(H51-G51)/C2*J51 -> -2267.68 | L51: -647.9085714
A52: 49 | B52: TNBP | C52: ОАО ТНК-BP Холдинг, ао | D52: =Лавущенко!D61 -> 2.5 | E52: =D52*C2 -> 78.53775 | F52: =Лавущенко!E61 -> 2.7 | G52: =F52*C2 -> 84.82077 | J52: =C1/F52 -> 839.8814815 | K52: =(H52-G52)/C2*J52 -> -2267.68 | L52: -167.9762963
A53: 50 | B53: TNBPP | C53: ОАО ТНК-BP Холдинг, ап | D53: =Лавущенко!D62 -> 2.1 | E53: =D53*C2 -> 65.97171 | F53: =Лавущенко!E62 -> 2.25 | G53: =F53*C2 -> 70.683975 | J53: =C1/F53 -> 1007.857778 | K53: =(H53-G53)/C2*J53 -> -2267.68 | L53: -151.1786667

Sheet РТС
A1: Авторизация
A2: Логин:
A3: Пароль:
A4: Запомнить
A5: Забыли пароль | Регистрация
F7: Регистрация Войти
E8: ФОРУМЫ | G8: КАРТА | I8: ВОПРОСЫ | K8: КОНТАКТЫ | L8: English | M8: English
B9: top.mail.ru | D9: Четверг, 13.10.2011 08:04
V11: Standard-ные Преимущества | AJ11: Standard-ные Вопросы | AN11: Личный кабинет
B12: Как стать участником
B14: Участникам торгов | T14: Малое отвлечение средств под совершение операций
T15: Преимущества отложенных расчетов по сделке
B16: Инвесторам | T16: Вечерние торги. Возможность торговать до 23:50
T17: Торговля с единого счета на двух рынках. Снижение требований по обеспечению
B18: Эмитентам | T18: Скальперский бонус по биржевой комиссии
B22: Фондовый рынок | T22: Налогообложение
B23: RTS Standard | T23: Перенос позиций
B24: Клиринг и расчеты | T24: Дивиденды
B25: Подключение к торгам
B26: РЕПО с Центральным Контрагентом
B27: Документы
B28: Тарифы | T28: На главную страницу» Фондовый рынок » RTS Standard » Информация о торгах | AG28: Версия для печати
B29: Участники
B30: Инструменты
B31: Информация о торгах | T31: Ход торгов на RTS Standard с задержкой на 15 минут
B32: RTS Classica | U32: Торговый день | W32: Вечерняя сессия
B33: T+0 | U33: Торговый день | W33: Вечерняя сессия
B35: Фьючерсы и опционы FORTS | T35: Данные на: | V35: 2011-10-12T18:59:00
B37: RTS Money | T37: Код | V37: Покупка | W37: Продажа | Y37: Макс.за день | Z37: Мин.за день | AA37: Цена | AB37: Изменение | AC37: Объём, шт. | AD37: Объём, руб | AE37: Число сделок
AA38: посл. сделки | AB38: к закрытию
B39: Внебиржевой рынок | T39: SBER | V39: 74.21 | W39: 74.28 | Y39: 74.67 | Z39: 69.61 | AA39: 74.19 | AB39: 0.0004 | AC39: 83373931 | AD39: 6024216668 | AE39: 16330
T40: GAZP | V40: 161.05 | W40: 161.19 | Y40: 161.71 | Z40: 152.33 | AA40: 161.41 | AB40: 0.0091 | AC40: 17181851 | AD40: 2703211595 | AE40: 14118
B41: Характеристики рынков | T41: LKOH | V41: 1683.43 | W41: 1685.56 | Y41: 1697.5 | Z41: 1654.89 | AA41: 1683.69 | AB41: -0.0008 | AC41: 487544 | AD41: 818604204.3 | AE41: 7465
T42: ROSN | V42: 197.67 | W42: 197.82 | Y42: 198.81 | Z42: 190.07 | AA42: 197.95 | AB42: 0.0009 | AC42: 3213410 | AD42: 628998159.5 | AE42: 6700
T43: GMKN | V43: 6269.1 | W43: 6280.23 | Y43: 6380 | Z43: 6163.5 | AA43: 6277.76 | AB43: 0.003 | AC43: 56730 | AD43: 358134840.1 | AE43: 2314
T44: VTBR | V44: 0.06676 | W44: 0.06684 | Y44: 0.06792 | Z44: 0.06498 | AA44: 0.06674 | AB44: -0.012 | AC44: 2063139000 | AD44: 137155794.4 | AE44: 1808
B45: О Группе РТС | T45: SNGS | V45: 25.863 | W45: 25.927 | Y45: 26.298 | Z45: 25.484 | AA45: 25.853 | AB45: 0.0014 | AC45: 5057600 | AD45: 131152889.3 | AE45: 2511
T46: SBERP | V46: 55.54 | W46: 55.64 | Y46: 56.39 | Z46: 52.95 | AA46: 55.54 | AB46: -0.0123 | AC46: 2271488 | AD46: 124010515.5 | AE46: 938
B47: Новости | T47: RSTR | V47: 1091.88 | W47: 1092.47 | Y47: 1094.3 | Z47: 1058.93 | AA47: 1092.44 | AB47: 0.0015 | AC47: 86859 | AD47: 93910359.25 | AE47: 227
T48: URKA | V48: 241.04 | W48: 241.88 | Y48: 245.82 | Z48: 237.89 | AA48: 241.7 | AB48: 0.008 | AC48: 162361 | AD48: 39351757.08 | AE48: 560
B49: Мероприятия | T49: SNGSP | V49: 14.229 | W49: 14.255 | Y49: 14.254 | Z49: 14.019 | AA49: 14.2 | AB49: 0.0006 | AC49: 1636100 | AD49: 23084942.7 | AE49: 160
T50: TATN | V50: 136.03 | W50: 138.98 | Y50: 138.98 | Z50: 133.48 | AA50: 138.94 | AB50: 0.0032 | AC50: 52451 | AD50: 7091557.69 | AE50: 55
B51: Листинг | T51: FEES | V51: 0.2301 | W51: 0.2665 | Y51: 0.2601 | Z51: 0.2301 | AA51: 0.2595 | AB51: 0.005 | AC51: 23365800 | AD51: 5872980.9 | AE51: 40
T52: CHMF | V52: 391.25 | W52: 392.15 | Y52: 398.95 | Z52: 380.4 | AA52: 390.68 | AB52: -0.0134 | AC52: 14668 | AD52: 5732358.48 | AE52: 270
B53: Индексы | T53: HYDR | V53: 1.107 | W53: 1.115 | Y53: 1.115 | Z53: 1.078 | AA53: 1.108 | AB53: -0.0027 | AC53: 4853200 | AD53: 5318511.1 | AE53: 254
T54: MTSS | V54: 178 | W54: 199.4 | Y54: - | Z54: - | AA54: - | AB54: - | AC54: 1662 | AD54: 319104 | AE54: 22
B55: Информация о торгах | T55: RTKM | V55: 149.79 | W55: 149.98 | Y55: 150.01 | Z55: 144.8 | AA55: 150.01 | AB55: 0.0224 | AC55: 1701 | AD55: 246199.34 | AE55: 20
T56: OGKA | V56: 0.58 | W56: - | Y56: - | Z56: - | AA56: - | AB56: - | AC56: 239800 | AD56: 144119.8 | AE56: 6
B57: Техническая поддержка | T57: NVTK | V57: 380 | W57: 398 | Y57: - | Z57: - | AA57: - | AB57: - | AC57: 180 | AD57: 68423.4 | AE57: 4
T58: MAGN | V58: 12.9 | W58: - | Y58: 12.9 | Z58: 12.9 | AA58: 12.9 | AB58: - | AC58: 4800 | AD58: 60320 | AE58: 3
B59: Конкурсы и спецпроекты | T59: SIBN | V59: 104.2 | W59: - | Y59: - | Z59: - | AA59: - | AB59: - | AC59: 212 | AD59: 22262.12 | AE59: 4
T60: PMTL | V60: 447 | W60: 509 | Y60: - | Z60: - | AA60: - | AB60: - | AC60: 2 | AD60: 966 | AE60: 2
B61: Вакансии | T61: OGKC | V61: 0.85 | W61: 1 | Y61: - | Z61: - | AA61: - | AB61: - | AC61: 1000 | AD61: 910 | AE61: 2
T62: AFLT | V62: 48.4 | W62: 55 | Y62: - | Z62: - | AA62: - | AB62: - | AC62: - | AD62: - | AE62: -
B63: Ссылки | T63: MRKH | V63: 2.04 | W63: - | Y63: - | Z63: - | AA63: - | AB63: - | AC63: - | AD63: - | AE63: -
T64: MSNG | V64: 1.76 | W64: 2.04 | Y64: - | Z64: - | AA64: - | AB64: - | AC64: - | AD64: - | AE64: -
T65: NLMK | V65: 72.6 | W65: - | Y65: - | Z65: - | AA65: - | AB65: - | AC65: - | AD65: - | AE65: -
T66: NMTP | V66: 2.76 | W66: 3.22 | Y66: - | Z66: - | AA66: - | AB66: - | AC66: - | AD66: - | AE66: -
T67: OGKB | V67: 0.86 | W67: 1.03 | Y67: - | Z67: - | AA67: - | AB67: - | AC67: - | AD67: - | AE67: -
T68: RASP | V68: 75 | W68: 90.3 | Y68: - | Z68: - | AA68: - | AB68: - | AC68: - | AD68: - | AE68: -
T69: TGKA | V69: 0.01 | W69: - | Y69: - | Z69: - | AA69: - | AB69: - | AC69: - | AD69: - | AE69: -
T70: TRNFP | V70: 31649.97 | W70: 31771.97 | Y70: - | Z70: - | AA70: - | AB70: - | AC70: - | AD70: - | AE70: -
T71: Данные на: | V71: 40828.99722
T73: Код | V73: Покупка | W73: Продажа | Y73: Макс.за день | Z73: Мин.за день | AA73: Цена | AB73: Изменение | AC73: Объём, шт. | AD73: Объём, руб | AE73: Число сделок
AA74: посл. сделки | AB74: к закрытию
T75: GMKN | V75: 6277.54 | W75: 6389 | Y75: 6389.99 | Z75: 6350.58 | AA75: 6350.58 | AB75: 0.0116 | AC75: 34840 | AD75: 218726160.9 | AE75: 118
T76: SBER | V76: 74.12 | W76: 74.23 | Y76: 75 | Z76: 73.99 | AA76: 74.53 | AB76: 0.0046 | AC76: 801720 | AD76: 59506309.15 | AE76: 1033
T77: GAZP | V77: 161.63 | W77: 161.76 | Y77: 163.27 | Z77: 160.88 | AA77: 161.55 | AB77: 0.0009 | AC77: 281815 | AD77: 45542883.44 | AE77: 744
T78: LKOH | V78: 1695 | W78: 1702.5 | Y78: 1702.85 | Z78: 1683.55 | AA78: 1695 | AB78: 0.0067 | AC78: 12311 | AD78: 20812477.07 | AE78: 473
T79: URKA | V79: - | W79: 270 | Y79: - | Z79: - | AA79: - | AB79: - | AC79: 72846 | AD79: 17606878.2 | AE79: 40
T80: ROSN | V80: 198 | W80: 199.41 | Y80: 199.7 | Z80: 197.47 | AA80: 198 | AB80: 0.0003 | AC80: 42070 | AD80: 8337756.12 | AE80: 226
T81: VTBR | V81: 0.06667 | W81: 0.06692 | Y81: - | Z81: - | AA81: - | AB81: - | AC81: 106656000 | AD81: 7117154.88 | AE81: 80
T82: SNGSP | V82: 13.303 | W82: 15.2 | Y82: - | Z82: - | AA82: - | AB82: - | AC82: 483000 | AD82: 6858600 | AE82: 22
T83: TATN | V83: 123 | W83: 139.25 | Y83: - | Z83: - | AA83: - | AB83: - | AC83: 45854 | AD83: 6370954.76 | AE83: 30
T84: RSTR | V84: 1099.05 | W84: 1099.77 | Y84: 1101.57 | Z84: 1090.65 | AA84: 1099.3 | AB84: 0.0063 | AC84: 5323 | AD84: 5842036.59 | AE84: 25
T85: SBERP | V85: 55.67 | W85: 56.15 | Y85: 56 | Z85: 55.7 | AA85: 55.7 | AB85: 0.0029 | AC85: 101376 | AD85: 5629977.68 | AE85: 99
T86: FEES | V86: 0.2454 | W86: 0.2919 | Y86: - | Z86: - | AA86: - | AB86: - | AC86: 17906600 | AD86: 4646762.7 | AE86: 28
T87: HYDR | V87: 1.08 | W87: 1.15 | Y87: - | Z87: - | AA87: - | AB87: - | AC87: 2361000 | AD87: 2618349 | AE87: 52
T88: SNGS | V88: 25.856 | W88: 26.5 | Y88: - | Z88: - | AA88: - | AB88: - | AC88: 34600 | AD88: 894686.8 | AE88: 32
T89: CHMF | V89: 380 | W89: 420 | Y89: - | Z89: - | AA89: - | AB89: - | AC89: 1968 | AD89: 770373.6 | AE89: 44
T90: MTSS | V90: 170.1 | W90: 200 | Y90: 199.99 | Z90: 170.15 | AA90: 199.99 | AB90: - | AC90: 1688 | AD90: 318431.22 | AE90: 25
T91: RTKM | V91: - | W91: - | Y91: - | Z91: - | AA91: - | AB91: - | AC91: 1332 | AD91: 199813.32 | AE91: 8
T92: OGKA | V92: - | W92: - | Y92: - | Z92: - | AA92: - | AB92: - | AC92: 239800 | AD92: 144119.8 | AE92: 6
T93: NVTK | V93: 377.5 | W93: - | Y93: - | Z93: - | AA93: - | AB93: - | AC93: 180 | AD93: 69051.6 | AE93: 4
T94: MAGN | V94: - | W94: - | Y94: - | Z94: - | AA94: - | AB94: - | AC94: 3200 | AD94: 41280 | AE94: 2
T95: SIBN | V95: - | W95: - | Y95: - | Z95: - | AA95: - | AB95: - | AC95: 212 | AD95: 22262.12 | AE95: 4
T96: PMTL | V96: - | W96: - | Y96: - | Z96: - | AA96: - | AB96: - | AC96: 2 | AD96: 956 | AE96: 2
T97: OGKC | V97: - | W97: - | Y97: - | Z97: - | AA97: - | AB97: - | AC97: 1000 | AD97: 925 | AE97: 2
T100: Добавить в закладки |
B103: Copyright © Фондовая биржа РТС, 1995-2011. Все права на информацию и аналитические материалы, размещенные на настоящем интернет-представительстве РТС, защищены в соответствии с российским законодательством. Воспроизведение, распространение и иное использование информации, размещенной на сайте РТС, или ее части допускается только с предварительного письменного согласия РТС. | AS103: Rambler's Top100
B104: Телефоны: (495) 705-9031, 287-7690. E-mail: info@rts.ru | S104: Реклама на сайте | Форумы | Отчетность эмитентов | AS104: Рейтинг@Mail.ru
B105: Адрес: 125009 г. Москва, ул. Воздвиженка, д. 4/7 стр. 1 | S105: Информеры | Портфель инвестора | Мобильная версия сайта | Схема проезда
B106: Техническая поддержка сайта: webmaster@rts.ru

Sheet РТС2
A1: Код | B1: Покупка | C1: Продажа | D1: Макс.за день | E1: Мин.за день | F1: Цена | G1: Изменение | H1: Объём, шт. | I1: Объём, руб | J1: Число сделок
F2: посл. сделки | G2: к закрытию
A3: SBER | B3: 74.21 | C3: 74.28 | D3: 74.67 | E3: 69.61 | F3: 74.19 | G3: 0.0004 | H3: 83373931 | I3: 6024216668 | J3: 16330
A4: GAZP | B4: 161.05 | C4: 161.19 | D4: 161.71 | E4: 152.33 | F4: 161.41 | G4: 0.0091 | H4: 17181851 | I4: 2703211595 | J4: 14118
A5: LKOH | B5: 1683.43 | C5: 1685.56 | D5: 1697.5 | E5: 1654.89 | F5: 1683.69 | G5: -0.0008 | H5: 487544 | I5: 818604204.3 | J5: 7465
A6: ROSN | B6: 197.67 | C6: 197.82 | D6: 198.81 | E6: 190.07 | F6: 197.95 | G6: 0.0009 | H6: 3213410 | I6: 628998159.5 | J6: 6700
A7: GMKN | B7: 6269.1 | C7: 6280.23 | D7: 6380 | E7: 6163.5 | F7: 6277.76 | G7: 0.003 | H7: 56730 | I7: 358134840.1 | J7: 2314
A8: VTBR | B8: 0.06676 | C8: 0.06684 | D8: 0.06792 | E8: 0.06498 | F8: 0.06674 | G8: -0.012 | H8: 2063139000 | I8: 137155794.4 | J8: 1808
A9: SNGS | B9: 25.863 | C9: 25.927 | D9: 26.298 | E9: 25.484 | F9: 25.853 | G9: 0.0014 | H9: 5057600 | I9: 131152889.3 | J9: 2511
A10: SBERP | B10: 55.54 | C10: 55.64 | D10: 56.39 | E10: 52.95 | F10: 55.54 | G10: -0.0123 | H10: 2271488 | I10: 124010515.5 | J10: 938
A11: RSTR | B11: 1091.88 | C11: 1092.47 | D11: 1094.3 | E11: 1058.93 | F11: 1092.44 | G11: 0.0015 | H11: 86859 | I11: 93910359.25 | J11: 227
A12: URKA | B12: 241.04 | C12: 241.88 | D12: 245.82 | E12: 237.89 | F12: 241.7 | G12: 0.008 | H12: 162361 | I12: 39351757.08 | J12: 560
A13: SNGSP | B13: 14.229 | C13: 14.255 | D13: 14.254 | E13: 14.019 | F13: 14.2 | G13: 0.0006 | H13: 1636100 | I13: 23084942.7 | J13: 160
A14: TATN | B14: 136.03 | C14: 138.98 | D14: 138.98 | E14: 133.48 | F14: 138.94 | G14: 0.0032 | H14: 52451 | I14: 7091557.69 | J14: 55
A15: FEES | B15: 0.2301 | C15: 0.2665 | D15: 0.2601 | E15: 0.2301 | F15: 0.2595 | G15: 0.005 | H15: 23365800 | I15: 5872980.9 | J15: 40
A16: CHMF | B16: 391.25 | C16: 392.15 | D16: 398.95 | E16: 380.4 | F16: 390.68 | G16: -0.0134 | H16: 14668 | I16: 5732358.48 | J16: 270
A17: HYDR | B17: 1.107 | C17: 1.115 | D17: 1.115 | E17: 1.078 | F17: 1.108 | G17: -0.0027 | H17: 4853200 | I17: 5318511.1 | J17: 254
A18: MTSS | B18: 178 | C18: 199.4 | D18: - | E18: - | F18: - | G18: - | H18: 1662 | I18: 319104 | J18: 22
A19: RTKM | B19: 149.79 | C19: 149.98 | D19: 150.01 | E19: 144.8 | F19: 150.01 | G19: 0.0224 | H19: 1701 | I19: 246199.34 | J19: 20
A20: OGKA | B20: 0.58 | C20: - | D20: - | E20: - | F20: - | G20: - | H20: 239800 | I20: 144119.8 | J20: 6
A21: NVTK | B21: 380 | C21: 398 | D21: - | E21: - | F21: - | G21: - | H21: 180 | I21: 68423.4 | J21: 4
A22: MAGN | B22: 12.9 | C22: - | D22: 12.9 | E22: 12.9 | F22: 12.9 | G22: - | H22: 4800 | I22: 60320 | J22: 3
A23: SIBN | B23: 104.2 | C23: - | D23: - | E23: - | F23: - | G23: - | H23: 212 | I23: 22262.12 | J23: 4
A24: PMTL | B24: 447 | C24: 509 | D24: - | E24: - | F24: - | G24: - | H24: 2 | I24: 966 | J24: 2
A25: OGKC | B25: 0.85 | C25: 1 | D25: - | E25: - | F25: - | G25: - | H25: 1000 | I25: 910 | J25: 2
A26: AFLT | B26: 48.4 | C26: 55 | D26: - | E26: - | F26: - | G26: - | H26: - | I26: - | J26: -
A27: MRKH | B27: 2.04 | C27: - | D27: - | E27: - | F27: - | G27: - | H27: - | I27: - | J27: -
A28: MSNG | B28: 1.76 | C28: 2.04 | D28: - | E28: - | F28: - | G28: - | H28: - | I28: - | J28: -
A29: NLMK | B29: 72.6 | C29: - | D29: - | E29: - | F29: - | G29: - | H29: - | I29: - | J29: -
A30: NMTP | B30: 2.76 | C30: 3.22 | D30: - | E30: - | F30: - | G30: - | H30: - | I30: - | J30: -
A31: OGKB | B31: 0.86 | C31: 1.03 | D31: - | E31: - | F31: - | G31: - | H31: - | I31: - | J31: -
A32: RASP | B32: 75 | C32: 90.3 | D32: - | E32: - | F32: - | G32: - | H32: - | I32: - | J32: -
A33: TGKA | B33: 0.01 | C33: - | D33: - | E33: - | F33: - | G33: - | H33: - | I33: - | J33: -
A34: TRNFP | B34: 31649.97 | C34: 31771.97 | D34: - | E34: - | F34: - | G34: - | H34: - | I34: - | J34: -
A37: 31.4151 | B37: −0.0119
A38: 42.8785 | B38: +0.0184

Sheet Лавущенко
A2: Карта сайта
A4: Закрыть карту сайта
A6: Владимир Лавущенко - персональный сайт
A8: Фондовая биржа
A10: Биржевой баланс на 12 октября 2011
A12: № | B12: Код | C12: Эмитенты | D12: Цена покупки * | E12: Цена продажи *
A13: 1 | B13: TRNFP | C13: ОАО АК Транснефть, ап | D13: 850 | E13: 1100
A14: 2 | B14: AKRN | C14: ОАО Акрон, ао | D14: 30 | E14: 40
A15: 3 | B15: AFKS | C15: ОАО АФК Система, ао | D15: 0.55 | E15: 0.8
A16: 4 | B16: AFLT | C16: ОАО Аэрофлот, ао | D16: 1.3 | E16: 2
A17: 5 | B17: VZRZ | C17: ОАО Банк Возрождение, ао | D17: 20.3 | E17: 23
A18: 6 | B18: VTBRS | C18: ОАО Банк ВТБ, ао | D18: 0.00214242 | E18: 0.00214433
A19: 7 | B19: BANE | C19: ОАО Башнефть, ао | D19: 48.25 | E19: 49
A20: 8 | B20: SIBN | C20: ОАО Газпром нефть, ао | D20: 3.1 | E20: 4.1
A21: 9 | B21: CHMFS | C21: ОАО Северсталь, ао | D21: 12.5309 | E21: 12.5405
A22: 10 | B22: GAZPS | C22: ОАО Газпром, ао | D22: 5.0953 | E22: 5.09657
A23: 11 | B23: GMKNS | C23: ОАО ГМК Норильский никель, ао | D23: 199.58 | E23: 199.643
A24: 12 | B24: LSRG | C24: ОАО Группа ЛСР, ао | D24: 15 | E24: 15.75
A25: 13 | B25: IRAO | C25: ОАО ИНТЕР РАО ЕЭС, ао | D25: 0.00106 | E25: 0.00118
A26: 14 | B26: MVID | C26: ОАО Компания М.видео, ао | D26: 5 | E26: 7
A27: 15 | B27: VSMO | C27: ОАО Корпорация ВСМПО-АВИСМА, ао | D27: 130 | E27: 200
A28: 16 | B28: LKOHS | C28: ОАО ЛУКОЙЛ, ао | D28: 53.7605 | E28: 53.77
A29: 17 | B29: MGNT | C29: ОАО Магнит, ао | D29: 70 | E29: 98
A30: 18 | B30: MTLR | C30: ОАО Мечел, ао | D30: 5.3 | E30: 11.5
A31: 19 | B31: MAGNS | C31: ОАО ММК, ао | D31: 0.410475 | E31: 0.413657
A32: 20 | B32: MSNG | C32: ОАО Мосэнерго, ао | D32: 0.055 | E32: 0.0625
A33: 21 | B33: MTSS | C33: ОАО МТС, ао | D33: 5 | E33: 6.5
A34: 22 | B34: ROSNS | C34: ОАО НК Роснефть, ао | D34: 6.30732 | E34: 6.31018
A35: 23 | B35: NLMKS | C35: ОАО НЛМК, ао | D35: 2.31012 | E35: 2.53604
A36: 24 | B36: NVTKS | C36: ОАО НОВАТЭК, ао | D36: 11.9324 | E36: 12.6643
A37: 25 | B37: NMTP | C37: ОАО Новороссийский морской торговый порт, ао | D37: 0.08 | E37: 0.1
A38: 26 | B38: OGKA | C38: ОАО ОГК-1, ао | D38: 0.017 | E38: 0.022
A39: 27 | B39: OGKB | C39: ОАО ОГК-2, ао | D39: 0.026 | E39: 0.031
A40: 28 | B40: OGKC | C40: ОАО ОГК-3, ао | D40: 0.02 | E40: 0.03
A41: 29 | B41: OGKD | C41: ОАО ОГК-4, ао | D41: 0.062 | E41: 0.072
A42: 30 | B42: PMTL | C42: ОАО Полиметалл, ао | D42: 14.05 | E42: 16
A43: 31 | B43: RASP | C43: ОАО Распадская, ао | D43: 1.7 | E43: 2.79
A44: 32 | B44: HYDRS | C44: ОАО РусГидро, ао | D44: 0.0354154 | E44: 0.035479
A45: 33 | B45: SBERS | C45: ОАО Сбербанк России, ао | D45: 2.35944 | E45: 2.35975
A46: 34 | B46: SBERPS | C46: ОАО Сбербанк России, ап | D46: 1.79368 | E46: 1.79527
A47: 35 | B47: SVAV | C47: ОАО СОЛЛЕРС, ао | D47: 11.25 | E47: 12
A48: 36 | B48: SNGSS | C48: ОАО Сургутнефтегаз, ао | D48: 0.824737 | E48: 0.825055
A49: 37 | B49: SNGSPS | C49: ОАО Сургутнефтегаз, ап | D49: 0.452127 | E49: 0.452636
A50: 38 | B50: TATNS | C50: ОАО Татнефть им.В.Д.Шашина, ао | D50: 4.41086 | E50: 4.41722
A51: 39 | B51: URKAS | C51: ОАО Уралкалий, ао | D51: 7.73061 | E51: 7.74302
A52: 40 | B52: PHST | C52: ОАО Фармстандарт, ао | D52: 65 | E52: 68.25
A53: 41 | B53: FEESS | C53: ОАО ФСК ЕЭС, ао | D53: 0.00819677 | E53: 0.00822859
A54: 42 | B54: MRKH | C54: ОАО Холдинг МРСК, ао | D54: 0.0675 | E54: 0.0725
A55: 43 | B55: DIXY | C55: ОАО ДИКСИ Групп, ао | D55: 7 | E55: 10
A56: 44 | B56: MSRS | C56: ОАО Московская объединенная электросетевая компания, ао | D56: 0.04646 | E56: 0.04808
A57: 45 | B57: MSTT | C57: ОАО МОСТОТРЕСТ, ао | D57: 5.01 | E57: 5.06
A58: 46 | B58: PIKK | C58: ОАО Группа Компаний ПИК, ао | D58: 2.78 | E58: 2.919
A59: 47 | B59: RUAL | C59: ОАО Сбербанк России, Юнайтед Компани РУСАЛ Плс, РДР на акции, 1:10 | D59: 9.13 | E59: 9.21
A60: 48 | B60: STBK | C60: ОАО Банк Санкт-Петербург, ао | D60: 2.5 | E60: 3.5
A61: 49 | B61: TNBP | C61: ОАО ТНК-BP Холдинг, ао | D61: 2.5 | E61: 2.7
A62: 50 | B62: TNBPP | C62: ОАО ТНК-BP Холдинг, ап | D62: 2.1 | E62: 2.25
A64: * Цена продажи - это цена, по которой рынок готов продать ценную бумагу.
A65: Цена покупки - это цена, по которой рынок готов купить ценную бумагу.
A66: Цены указаны в КГ.
A68: Назад
A70: Карта сайта
A72: Главная
A73: Гостевая
A74: Поздравления
A75: Доска объявлений
A76: Состав редакции
A77: Коллегия экспертов
A78: Статистика
A79: Друзья сайта
A80: Поиск
A81: Обратная связь
A82: Аукцион
A83: Кабинет
A84: Дневник
A85: Записная книжка
A86: АБЫР—ВАЛГ
A87: Литературный архив
A88: Биография
A89: Фотоархив
A90: Реестр социальных идей
A91: Семейная кухня
A92: Кулинарные рассказы
A93: Прошу зайти на кухню
A94: Народные рецепты
A95: Любимые рецепты
A96: Сквозь пивную этикетку
A97: Отзывы посетителей сайта
A98: Прожить по минимуму
A99: Корпоративный университет
A100: Главная страница
A101: Большое жюри
A102: Дипломные проекты
A103: Интеллектуальный рейтинг
A104: Биржевая торговля
A105: Создай свое предприятие
A106: Методический совет и модераторы интеллектуальных тренингов
A107: Справка по подведению итогов конкурса на занятие рабочего места специалиста в Группе компаний ОАО «Татнефть» среди выпускников АГНИ факультета «Экономики и управления» (2011 г.)
A108: Учебный план ЭКУ
A109: Официальные документы
A110: Электронная библиотека
A111: НОУ "Центр подготовки кадров - Татнефть"
A112: 50 шагов в будущее
A113: Прямой эфир с выпускниками АГНИ
A114: Промышленная безопасность: интерактивные курсы обучения
A115: Клуб активистов ЭКУ
A116: Экономический практикум
A117: Редколлегия раздела
A118: Информация о выпускниках - 2011 г. АГНИ
A119: Лучшие выпускники вузов РТ
A120: Уроки лидерства
A121: Заявка на подбор специалистов
A122: Свободные агенты биржи
A123: Основные вопросы по организации и деятельности «Студенческой биржи труда» ЭКУ
A124: Биржевой комитет
A125: Официальные документы методического совета
A126: Курс молодого специалиста
A127: Уважаемые Партнеры, преподаватели и студенты!
A128: Порядок проведения электронных олимпиад Электронного корпоративного университета
A129: Заявка на участие в тренинге "Биржевая торговля"
A130: Страница для школьника
A131: Материалы ЭКУ
A132: Рейтинги
A133: Гостиная
A134: SOS
A135: Наш форум
A136: Открытая тетрадь
A137: Наш опрос
A138: Публикации на тему
A139: Улыбнись!
A140: Информационные бюллетени
A141: Гороскоп на 2011 год
A142: Мастерская
A143: Виртуальный музей
A144: Записки музейного смотрителя
A145: Этюды повседневности
A146: «Литературная студия»
A147: Народный словарь
A148: «Литературный Ринг»
A149: Творчество гостей сайта
A150: Афоризмы от Канифа Хакимова
A151: Личные покои
A152: Исповедь в интернете
A153: Познай себя
A154: Постулаты Грасиана
A155: Градусник настроения
A156: Психологический практикум
A157: Тесты
A158: «Ринг взглядов»
A159: Спортивная
A160: Хоккейный интернет
A161: Новости КХЛ
A162: Новости ВХЛ
A163: Хоккейные персоны
A164: Хоккейные публикации
A165: Детская
A166: «Дачная Азбука»
A167: Рисунки
A168: Рассказы
A169: Задачи
A170: Анекдоты
A171: Говорят дети
A172: Афоризмы о детях и детстве
A173: Сказка
A174: Игровая
A175: Китайская грамота
A176: Правила написания
A177: Результаты участников
A178: Знаки и символы
A179: Угадай-ка— игровой зал
A180: Выставочный центр
A181: Предсказания
A182: Викторина
A183: Словарь уменьшительных имён
A184: Угадай ответ
A185: Брейн-Ринг
A186: Спроси у Грасиана
A187: Архив
A188: 9 мая
A189: Создай идеал
A190: События и факты короткой строкой
A191: Кинозал
A192: Программа
A193: Новогодний стол
A195: © Владимир Лавущенко
A196: 2009 – 2011
A198: Загрузка ...
